bitfinex-derivatives/quotes_ETHF0:USTF0_20230902
["timestamp","ask_amount","ask_price","bid_price","bid_amount"]
[1693617639882,6.90321808,1632.1,1632.0,12.33609223]
[1693617641879,8.37966172,1632.1,1632.0,12.33609223]
[1693617643775,6.90321808,1632.1,1632.0,12.33609223]
[1693617644280,6.96451808,1632.1,1632.0,12.33609223]
[1693617649286,8.44096172,1632.1,1632.0,12.33609223]
[1693617649481,6.96451808,1632.1,1632.0,12.33609223]
[1693617650987,8.44096172,1632.1,1632.0,12.33609223]
[1693617654886,8.44096172,1632.1,1632.0,9.46892871]
[1693617656084,8.44096172,1632.1,1632.0,12.33609223]
[1693617658591,8.44096172,1632.1,1632.0,9.46892871]
[1693617659191,8.44096172,1632.1,1632.0,12.33609223]
[1693617659388,8.44096172,1632.1,1632.0,9.46892871]
[1693617660692,8.44096172,1632.1,1632.0,12.33609223]
[1693617661196,8.44096172,1632.1,1632.0,9.46892871]
[1693617661494,8.44096172,1632.1,1632.0,12.33609223]
[1693617661895,13.96996172,1632.1,1632.0,9.46892871]
[1693617662292,13.96996172,1632.1,1632.0,12.33609223]
[1693617663297,13.96996172,1632.1,1632.0,9.46892871]
[1693617664996,13.96996172,1632.1,1632.0,12.33609223]
[1693617666601,13.96996172,1632.1,1632.0,9.46892871]
[1693617667702,13.96996172,1632.1,1632.0,12.33609223]
[1693617669603,12.49351808,1632.1,1632.0,12.33609223]
[1693617669796,10.19489808,1632.1,1632.0,12.33609223]
[1693617671003,10.19489808,1632.1,1632.0,14.63473223]
[1693617672004,4.66589808,1632.1,1632.0,14.63473223]
[1693617679009,4.66589808,1632.1,1632.0,22.68206558]
[1693617684712,6.14234172,1632.1,1632.0,19.81490206]
[1693617684913,8.44096172,1632.1,1632.0,19.81490206]
[1693617685113,8.44096172,1632.1,1632.0,22.68206558]
[1693617685816,8.44096172,1632.1,1632.0,14.63473223]
[1693617687516,6.96451808,1632.1,1632.0,14.63473223]
[1693617687820,8.44096172,1632.1,1632.0,14.63473223]
[1693617689419,8.44096172,1632.1,1632.0,11.76756871]
[1693617690719,8.44096172,1632.1,1632.0,14.63473223]
[1693617691319,8.44096172,1632.1,1632.0,11.76756871]
[1693617693120,8.44096172,1632.1,1632.0,14.63473223]
[1693617694018,8.44096172,1632.1,1632.0,22.68206558]
[1693617700131,8.44096172,1632.1,1632.0,19.81490206]
[1693617700931,8.44096172,1632.1,1632.0,19.0086265]
[1693617702130,8.44096172,1632.1,1632.0,19.00865906]
[1693617702330,8.44096172,1632.1,1632.0,21.87582258]
[1693617703428,8.44096172,1632.1,1632.0,11.86088906]
[1693617703630,16.26858172,1632.1,1631.9,0.50198675]
[1693617703830,7.79893648,1632.0,1631.8,7.24109035]
[1693617704131,6.95806,1631.8,1631.6,4.59834]
[1693617704328,6.9589,1631.6,1631.5,12.6534491]
[1693617704526,13.96434364,1631.6,1631.5,8.07738885]
[1693617704833,16.26354364,1631.6,1631.5,0.0317329]
[1693617706134,16.26354364,1631.6,1631.2,8.04565595]
[1693617706432,14.72748,1631.3,1631.1,14.94521595]
[1693617706632,12.42828,1631.2,1631.1,12.64535595]
[1693617706821,13.90472364,1631.2,1631.1,12.66789897]
[1693617707223,18.53572012,1631.2,1631.1,8.55551184]
[1693617707428,18.53572012,1631.2,1631.1,10.85541184]
[1693617707627,18.53572012,1631.2,1631.1,2.80975589]
[1693617707825,18.47442012,1631.2,1631.1,5.10965589]
[1693617708025,18.47442012,1631.2,1631.1,0.50985589]
[1693617709241,18.47442012,1631.2,1631.1,0.02254302]
[1693617709842,18.47442012,1631.2,1631.1,2.32245302]
[1693617710142,18.47442012,1631.2,1631.1,4.62236302]
[1693617710546,18.47442012,1631.2,1631.1,0.02254302]
[1693617711850,18.47442012,1631.2,1631.1,4.62234302]
[1693617713047,18.47442012,1631.2,1631.1,0.02254302]
[1693617713251,18.48173478,1631.2,1631.1,0.02254302]
[1693617714353,18.48173478,1631.2,1631.1,4.62234302]
[1693617732565,18.54303478,1631.2,1631.1,4.62234302]
[1693617734060,18.54303478,1631.2,1631.1,2.32244302]
[1693617738770,18.54303478,1631.2,1631.1,0.02254302]
[1693617740871,18.54303478,1631.2,1631.1,2.32244302]
[1693617743374,18.54303478,1631.2,1631.1,4.62234302]
[1693617746468,20.1508876,1631.2,1631.1,4.62234302]
[1693617748276,20.1508876,1631.2,1631.1,0.02254302]
[1693617748676,22.06549284,1631.2,1631.1,0.02254302]
[1693617749469,29.21064406,1631.2,1631.1,0.02254302]
[1693617750369,22.06549284,1631.2,1631.1,0.02254302]
[1693617750572,29.21145094,1631.2,1631.1,0.02254302]
[1693617754070,25.68899288,1631.2,1631.1,0.02254302]
[1693617754271,18.54303478,1631.2,1631.1,0.02254302]
[1693617754669,25.68899288,1631.2,1631.1,0.02254302]
[1693617755275,18.54303478,1631.2,1631.1,0.02254302]
[1693617759884,18.54303478,1631.2,1631.1,2.32244302]
[1693617761485,19.03258122,1631.2,1631.1,2.32244302]
[1693617765488,19.03258122,1631.2,1631.1,0.02254302]
[1693617766385,19.03258122,1631.2,1631.1,2.32244302]
[1693617771788,19.03258122,1631.2,1631.1,0.02254302]
[1693617772780,19.03258122,1631.2,1631.1,2.32244302]
[1693617777795,19.03258122,1631.2,1631.1,4.62234302]
[1693617778295,19.03258122,1631.2,1631.1,2.32244302]
[1693617781694,19.03258122,1631.2,1631.1,0.02254302]
[1693617782299,19.03258122,1631.2,1631.1,2.32244302]
[1693617786894,19.03258122,1631.2,1631.1,0.02254302]
[1693617787698,19.03258122,1631.2,1631.1,2.32244302]
[1693617787900,19.03258122,1631.2,1631.1,0.02254302]
[1693617789898,9.83354122,1631.2,1631.1,0.02254302]
[1693617796310,9.83354122,1631.2,1631.0,0.00919596]
[1693617796512,5.529,1631.1,1631.0,0.00919596]
[1693617796715,5.529,1631.1,1631.0,0.0317443]
[1693617797117,5.53630193,1631.1,1631.0,0.0317443]
[1693617820133,14.73590193,1631.1,1631.0,0.0317443]
[1693617821238,21.9336095,1631.1,1631.0,0.0317443]
[1693617836042,21.9336095,1631.1,1631.0,0.03174631]
[1693617858960,21.9949095,1631.1,1631.0,0.03174631]
[1693617859162,0.0613,1631.0,1630.9,2.592]
[1693617859361,18.53684012,1631.0,1630.9,2.61455086]
[1693617860366,18.54413017,1631.0,1630.9,2.61455086]
[1693617868867,17.00638653,1631.0,1630.9,5.48171438]
[1693617869071,14.73645005,1631.0,1630.9,5.48171438]
[1693617870875,15.23418854,1631.0,1630.9,5.48171438]
[1693617871172,15.23418854,1631.0,1630.9,7.78189438]
[1693617871572,15.23418854,1631.0,1630.9,10.08207438]
[1693617873474,15.23418854,1631.0,1630.9,7.78189438]
[1693617878481,15.23418854,1631.0,1630.9,5.48171438]
[1693617886781,14.73645005,1631.0,1630.9,10.08207438]
[1693617887084,6.90741005,1631.0,1630.9,12.38225438]
[1693617887279,0.00729005,1631.0,1630.9,20.21143438]
[1693617887583,12.42858,1631.2,1631.0,10.79344572]
[1693617887783,12.42857,1631.2,1631.1,9.78941438]
[1693617888276,12.4353137,1631.2,1631.1,12.25061438]
[1693617909601,6.9063137,1631.2,1631.1,12.25061438]
[1693617912295,6.9676137,1631.2,1631.1,12.25061438]
[1693617914901,6.9676137,1631.2,1631.1,17.77961438]
[1693617918306,10.74392734,1631.2,1631.1,0.02255086]
[1693617918607,20.27580181,1631.2,1630.9,8.52688423]
[1693617918806,3.93238627,1631.1,1631.0,0.02255026]
[1693617919006,19.04754016,1631.1,1631.0,0.02255026]
[1693617919207,0.0613,1631.0,1630.7,7.39634943]
[1693617919508,12.94710012,1630.9,1630.8,0.02255087]
[1693617919710,12.94710012,1630.9,1630.8,2.32287087]
[1693617920205,12.94710012,1630.9,1630.8,4.62319087]
[1693617921902,18.47610012,1630.9,1630.8,4.62319087]
[1693617922103,18.47610012,1630.9,1630.8,2.32287087]
[1693617922303,18.47610012,1630.9,1630.8,0.02255087]
[1693617922806,18.47610012,1630.9,1630.8,2.32287087]
[1693617923305,18.48281942,1630.9,1630.8,2.32287087]
[1693617924411,18.48281942,1630.9,1630.8,7.49035439]
[1693617926411,17.00637578,1630.9,1630.8,7.49035439]
[1693617927111,6.9072593,1630.9,1630.8,17.61999439]
[1693617927304,6.9072593,1630.9,1630.8,20.01679439]
[1693617941520,6.9072593,1630.9,1630.8,17.71647439]
[1693617950825,9.2074493,1630.9,1630.8,15.41615439]
[1693617951228,10.68389294,1630.9,1630.8,13.11584439]
[1693617951427,10.68389294,1630.9,1630.8,10.71904439]
[1693617951825,10.68389294,1630.9,1630.8,5.19004439]
[1693617952425,10.68389294,1630.9,1630.8,4.62321087]
[1693617952825,10.68389294,1630.9,1630.8,7.49037439]
[1693617954536,4.6070793,1630.9,1630.8,9.79070439]
[1693617954733,4.6070793,1630.9,1630.8,12.09103439]
[1693617955241,6.9072593,1630.9,1630.8,12.09103439]
[1693617955741,6.9072593,1630.9,1630.8,14.61123439]
[1693617956141,4.6070793,1630.9,1630.8,14.61123439]
[1693617957037,6.9072593,1630.9,1630.8,14.61123439]
[1693617959748,6.9072593,1630.9,1630.8,12.31090439]
[1693617986868,8.38370294,1630.9,1630.8,9.44374087]
[1693617988064,8.38370294,1630.9,1630.8,12.31090439]
[1693617990765,8.38370294,1630.9,1630.8,9.44374087]
[1693617991771,8.38370294,1630.9,1630.8,12.31090439]
[1693617993966,10.68388294,1630.9,1630.8,12.31090439]
[1693617996878,10.68388294,1630.9,1630.8,9.44374087]
[1693617997376,10.68388294,1630.9,1630.8,12.31090439]
[1693617999276,10.68388294,1630.9,1630.8,9.44374087]
[1693618000980,10.68388294,1630.9,1630.8,12.31090439]
[1693618002379,10.68388294,1630.9,1630.8,9.44374087]
[1693618003176,10.68388294,1630.9,1630.8,12.31090439]
[1693618003374,9.2074393,1630.9,1630.8,12.31090439]
[1693618006887,10.68388294,1630.9,1630.8,12.31090439]
[1693618007288,9.2074393,1630.9,1630.8,12.31090439]
[1693618007788,10.68388294,1630.9,1630.8,12.31090439]
[1693618012895,9.2074393,1630.9,1630.8,12.31090439]
[1693618017903,10.68388294,1630.9,1630.8,12.31090439]
[1693618019204,9.2074393,1630.9,1630.8,12.31090439]
[1693618020304,6.9072593,1630.9,1630.8,12.31090439]
[1693618030117,10.68388294,1630.9,1630.8,9.44374087]
[1693618030813,10.68388294,1630.9,1630.8,7.14341087]
[1693618031414,10.68388294,1630.9,1630.8,10.01057439]
[1693618033413,10.68388294,1630.9,1630.8,7.14341087]
[1693618033816,16.21288294,1630.9,1630.8,0.02255087]
[1693618034114,17.81687087,1630.9,1630.8,0.02255087]
[1693618035011,17.81687087,1630.9,1630.7,0.02255087]
[1693618035216,17.81687087,1630.9,1630.7,2.32300087]
[1693618035217,17.00021648,1630.8,1630.7,2.32300087]
[1693618036319,17.00809962,1630.8,1630.7,2.32300087]
[1693618037515,17.00809962,1630.8,1630.7,4.62346087]
[1693618037720,17.00809962,1630.8,1630.7,7.49062439]
[1693618038823,17.00809962,1630.8,1630.7,9.79108439]
[1693618041524,4.60852314,1630.8,1630.7,12.09154439]
[1693618041826,4.60051,1630.9,1630.7,17.62054439]
[1693618042025,4.60051,1630.9,1630.8,5.55155087]
[1693618042222,4.60051,1630.9,1630.8,16.34611659]
[1693618042424,6.90076,1630.9,1630.8,18.81631659]
[1693618042725,6.90076,1630.9,1630.8,10.98699659]
[1693618042923,10.67745364,1630.9,1630.8,2.32287087]
[1693618043225,10.68504163,1630.9,1630.8,2.32287087]
[1693618044330,10.68504163,1630.9,1630.8,4.62319087]
[1693618046328,10.68504163,1630.9,1630.8,7.49035439]
[1693618046522,10.68504163,1630.9,1630.8,4.62319087]
[1693618049529,10.68504163,1630.9,1630.8,7.49035439]
[1693618050024,10.68504163,1630.9,1630.8,4.62319087]
[1693618051929,16.21404163,1630.9,1630.8,4.62319087]
[1693618061636,16.21404163,1630.9,1630.8,6.92351087]
[1693618061834,16.21404163,1630.9,1630.8,9.43951087]
[1693618062533,16.21404163,1630.9,1630.8,12.30667439]
[1693618062733,16.21404163,1630.9,1630.8,9.43951087]
[1693618064136,16.21404163,1630.9,1630.8,12.30667439]
[1693618064528,16.21404163,1630.9,1630.8,9.43951087]
[1693618064728,16.21404163,1630.9,1630.8,12.30667439]
[1693618067441,16.21404163,1630.9,1630.8,7.13919087]
[1693618067742,16.21404163,1630.9,1630.8,4.83887087]
[1693618069045,16.21404163,1630.9,1630.8,10.00635439]
[1693618069438,14.73759799,1630.9,1630.8,10.00635439]
[1693618069639,16.21404163,1630.9,1630.8,10.00635439]
[1693618069943,16.21404163,1630.9,1630.8,7.13919087]
[1693618070439,16.21404163,1630.9,1630.8,4.62319087]
[1693618071746,16.21404163,1630.9,1630.8,7.49035439]
[1693618072246,16.21404163,1630.9,1630.8,4.62319087]
[1693618073847,16.21404163,1630.9,1630.8,7.49035439]
[1693618075246,16.21404163,1630.9,1630.8,4.62319087]
[1693618077141,14.73759799,1630.9,1630.8,9.79067439]
[1693618077449,7.83682799,1630.9,1630.8,16.10008011]
[1693618077649,10.13707799,1630.9,1630.8,16.10008011]
[1693618077843,10.13707799,1630.9,1630.8,13.79976011]
[1693618078042,12.43732799,1630.9,1630.8,13.79976011]
[1693618080450,10.13707799,1630.9,1630.8,16.10008011]
[1693618080646,12.43725799,1630.9,1630.8,13.79976011]
[1693618084244,30.11098883,1630.9,1630.8,13.79976011]
[1693618084444,31.58743247,1630.9,1630.8,13.79976011]
[1693618084645,13.91370163,1630.9,1630.8,13.79976011]
[1693618085253,12.43725799,1630.9,1630.8,13.79976011]
[1693618095552,10.13700799,1630.9,1630.8,16.10008011]
[1693618096052,12.43718799,1630.9,1630.8,13.79976011]
[1693618097047,13.91363163,1630.9,1630.8,13.79976011]
[1693618097253,12.43718799,1630.9,1630.8,13.79976011]
[1693618104056,13.91363163,1630.9,1630.8,13.79976011]
[1693618105854,12.43718799,1630.9,1630.8,13.79976011]
[1693618115257,13.91363163,1630.9,1630.8,13.79976011]
[1693618115454,13.91363163,1630.9,1630.8,9.33931087]
[1693618117161,12.43718799,1630.9,1630.8,12.20647439]
[1693618122067,13.91363163,1630.9,1630.8,9.33931087]
[1693618125971,13.91363163,1630.9,1630.8,12.20647439]
[1693618126972,12.43718799,1630.9,1630.8,12.20647439]
[1693618127473,12.43718799,1630.9,1630.8,12.70249756]
[1693618127877,13.91363163,1630.9,1630.8,12.70249756]
[1693618129270,16.21381163,1630.9,1630.8,7.49035439]
[1693618129470,16.21381163,1630.9,1630.8,0.02255087]
[1693618137186,17.81841491,1630.9,1630.8,0.02255087]
[1693618138276,0.0613,1630.7,1630.1,8.04666111]
[1693618138475,5.529,1630.2,1629.8,2.3986]
[1693618138682,5.529,1629.9,1629.8,10.89706572]
[1693618138883,6.90453,1630.0,1629.8,16.08852144]
[1693618139078,6.90453,1630.0,1629.9,0.0225622]
[1693618139289,6.91204554,1630.0,1629.9,6.9272722]
[1693618139788,4.61052554,1630.0,1629.9,6.9272722]
[1693618140678,10.13952554,1630.0,1629.9,6.9272722]
[1693618141080,0.00751554,1630.0,1629.9,9.2288522]
[1693618141284,0.00751554,1630.0,1629.9,14.7578522]
[1693618141778,0.00920273,1630.1,1630.0,4.46044924]
[1693618141986,4.60188,1630.4,1630.0,16.8291923]
[1693618142181,4.60188,1630.4,1630.2,5.529]
[1693618142382,10.13056,1630.5,1630.3,13.68705144]
[1693618142579,10.13056,1630.5,1630.4,0.0225622]
[1693618142787,10.13056,1630.5,1630.4,6.9251722]
[1693618142988,12.43136,1630.5,1630.4,6.9251722]
[1693618143188,13.90780364,1630.5,1630.4,6.9251722]
[1693618143791,12.43136,1630.5,1630.4,6.9251722]
[1693618144088,13.90780364,1630.5,1630.4,6.9251722]
[1693618144981,13.90780364,1630.5,1630.4,9.5310722]
[1693618145179,12.43136,1630.5,1630.4,9.5310722]
[1693618149285,12.43833334,1630.5,1630.4,9.5310722]
[1693618151098,12.43833334,1630.5,1630.4,11.9644722]
[1693618151793,12.43833334,1630.5,1630.4,9.6636022]
[1693618152194,12.43833334,1630.5,1630.4,11.9644922]
[1693618152793,13.91477698,1630.5,1630.4,9.6636022]
[1693618153186,13.91477698,1630.5,1630.4,11.9644922]
[1693618154490,12.43833334,1630.5,1630.4,11.9644922]
[1693618155301,12.74577969,1630.5,1630.4,11.9644922]
[1693618155797,7.21677969,1630.5,1630.4,11.9644922]
[1693618158801,8.69322333,1630.5,1630.4,11.9644922]
[1693618159600,7.21677969,1630.5,1630.4,11.9644922]
[1693618165601,8.69322333,1630.5,1630.4,11.5203573]
[1693618167402,8.75452333,1630.5,1630.4,11.5203573]
[1693618167603,7.27807969,1630.5,1630.4,11.5203573]
[1693618175307,7.7585373,1630.5,1630.4,11.5203573]
[1693618189712,9.23498094,1630.5,1630.4,11.5203573]
[1693618191020,5.4577373,1630.5,1630.4,11.5203573]
[1693618192518,7.7585373,1630.5,1630.4,11.5203573]
[1693618194320,7.27807969,1630.5,1630.4,11.5203573]
[1693618194517,0.31441969,1630.5,1630.4,13.8212473]
[1693618197019,0.31441969,1630.5,1630.4,21.87501321]
[1693618202131,0.31441969,1630.5,1630.4,27.40401321]
[1693618203323,0.31441969,1630.5,1630.4,27.40381696]
[1693618204529,0.31441969,1630.5,1630.4,19.3502473]
[1693618206533,0.31441969,1630.5,1630.4,19.37280155]
[1693618207333,4.15288333,1630.5,1630.4,9.24202155]
[1693618207534,16.58404333,1630.5,1630.4,0.02255425]
[1693618218541,0.0613,1630.3,1630.0,2.3014]
[1693618218742,5.529,1630.1,1630.0,2.3014]
[1693618219043,12.43284,1630.1,1630.0,4.6253605]
[1693618219244,14.70277648,1630.1,1630.0,4.6253605]
[1693618220343,17.06535648,1630.1,1630.0,4.6254005]
[1693618220543,17.06535648,1630.1,1630.0,0.0225605]
[1693618227039,0.0613,1630.0,1629.7,15.66630292]
[1693618227250,9.26754,1629.9,1629.8,2.32424264]
[1693618227441,13.01392012,1629.9,1629.8,2.32424264]
[1693618228554,18.54292012,1629.9,1629.8,0.02256264]
[1693618229851,18.54292012,1629.9,1629.8,2.32427264]
[1693618230052,18.85036647,1629.9,1629.8,2.32427264]
[1693618230446,18.85036647,1629.9,1629.8,0.02256264]
[1693618240756,18.85700639,1629.9,1629.8,0.02256264]
[1693618248668,18.85700639,1629.9,1629.8,2.88972616]
[1693618249067,18.79570639,1629.9,1629.8,2.88972616]
[1693618249869,18.79570639,1629.9,1629.8,0.02256264]
[1693618264285,15.04932627,1629.9,1629.8,7.49318616]
[1693618264581,12.74776627,1629.9,1629.8,7.49318616]
[1693618264970,12.74776627,1629.9,1629.8,9.79491616]
[1693618265177,30.41025185,1629.9,1629.8,7.49318616]
[1693618265373,12.74776627,1629.9,1629.8,7.49318616]
[1693618265577,12.74776627,1629.9,1629.8,9.79491616]
[1693618265884,12.74776627,1629.9,1629.8,7.49318616]
[1693618268987,14.22420991,1629.9,1629.8,7.49318616]
[1693618270997,12.74776627,1629.9,1629.8,7.49318616]
[1693618274599,12.74776627,1629.9,1629.8,9.79491616]
[1693618274897,12.74776627,1629.9,1629.8,7.49318616]
[1693618275499,14.22420991,1629.9,1629.8,7.49318616]
[1693618276199,14.22420991,1629.9,1629.8,4.62602264]
[1693618276899,14.22420991,1629.9,1629.8,7.49318616]
[1693618279102,16.52579991,1629.9,1629.8,7.49318616]
[1693618282405,15.04935627,1629.9,1629.8,7.49318616]
[1693618286498,16.52579991,1629.9,1629.8,7.49318616]
[1693618287908,16.52579991,1629.9,1629.8,4.62602264]
[1693618290111,16.52579991,1629.9,1629.8,7.49318616]
[1693618291314,15.04935627,1629.9,1629.8,7.49318616]
[1693618292220,16.52579991,1629.9,1629.8,7.49318616]
[1693618293517,15.04935627,1629.9,1629.8,7.49318616]
[1693618294221,16.52579991,1629.9,1629.8,7.49318616]
[1693618296819,15.04935627,1629.9,1629.8,7.49318616]
[1693618297019,16.52579991,1629.9,1629.8,7.49318616]
[1693618302230,15.04935627,1629.9,1629.8,7.49318616]
[1693618302822,16.52579991,1629.9,1629.8,7.49318616]
[1693618303732,15.04935627,1629.9,1629.8,7.49318616]
[1693618303925,16.52579991,1629.9,1629.8,7.49318616]
[1693618304725,15.04935627,1629.9,1629.8,7.49318616]
[1693618306734,12.74776627,1629.9,1629.8,7.49318616]
[1693618307035,12.74776627,1629.9,1629.8,9.79491616]
[1693618307334,12.74779627,1629.9,1629.8,9.79491616]
[1693618309939,12.74779627,1629.9,1629.8,17.85184719]
[1693618312439,12.74779627,1629.9,1629.8,15.55011719]
[1693618314340,12.74779627,1629.9,1629.8,17.85184719]
[1693618316847,12.74779627,1629.9,1629.8,9.79491616]
[1693618320557,5.84308627,1629.9,1629.8,12.09664616]
[1693618324357,10.44626627,1629.9,1629.8,12.09664616]
[1693618325965,10.44626627,1629.9,1629.8,9.79491616]
[1693618330656,0.31408627,1629.9,1629.8,17.62564616]
[1693618330959,0.0614,1630.3,1629.8,17.62564616]
[1693618330960,4.66364,1630.3,1629.8,17.62564616]
[1693618331161,2.30109,1630.3,1630.2,6.90348]
[1693618331361,5.529,1630.4,1630.2,12.09436616]
[1693618331665,5.529,1630.5,1630.3,1.61584836]
[1693618331961,12.44026991,1630.6,1630.4,12.09324616]
[1693618332263,12.44026991,1630.6,1630.5,8.51806836]
[1693618334269,12.44026991,1630.6,1630.5,10.81880836]
[1693618334669,10.13957991,1630.6,1630.5,10.81880836]
[1693618335461,7.83888991,1630.6,1630.5,10.81880836]
[1693618335867,5.53819991,1630.6,1630.5,10.81880836]
[1693618336171,10.13939991,1630.6,1630.5,10.81880836]
[1693618336567,5.53819991,1630.6,1630.5,10.81880836]
[1693618336871,7.83879991,1630.6,1630.5,10.81880836]
[1693618337271,10.13939991,1630.6,1630.5,10.81880836]
[1693618338670,10.14481252,1630.6,1630.5,10.81880836]
[1693618339669,13.98325616,1630.6,1630.5,8.51806836]
[1693618339870,13.98325616,1630.6,1630.3,2.30099]
[1693618339871,0.0614,1630.5,1630.3,2.30089]
[1693618340077,0.0614,1630.3,1630.1,5.10114201]
[1693618340279,14.70241648,1630.2,1630.1,6.90376]
[1693618340573,14.70241648,1630.2,1630.1,9.79348334]
[1693618347372,12.43248,1630.2,1630.1,9.79348334]
[1693618347572,7.83016,1630.2,1630.1,12.09478334]
[1693618347779,5.529,1630.2,1630.1,12.09478334]
[1693618351882,5.5904,1630.3,1630.1,12.09478334]
[1693618352084,5.5904,1630.3,1630.2,1.61584554]
[1693618352283,5.5904,1630.3,1630.2,15.77978554]
[1693618355588,5.59578846,1630.3,1630.2,15.77978554]
[1693618358587,7.89680846,1630.3,1630.2,15.77978554]
[1693618358781,5.59578846,1630.3,1630.2,15.77978554]
[1693618365892,7.89680846,1630.3,1630.2,15.77978554]
[1693618367696,5.59578846,1630.3,1630.2,15.77978554]
[1693618368597,7.89680846,1630.3,1630.2,15.77978554]
[1693618373495,11.6742721,1630.3,1630.2,10.82048554]
[1693618373698,16.2763121,1630.3,1630.2,0.02255982]
[1693618374102,17.88393303,1630.3,1630.2,0.02255982]
[1693618374797,17.88393303,1630.3,1630.1,0.02255982]
[1693618374992,12.35493303,1630.3,1630.2,0.02255982]
[1693618375194,35.25380243,1630.3,1630.1,0.02255982]
[1693618375496,6.9039,1630.1,1630.0,4.60275]
[1693618375693,13.90934364,1630.1,1630.0,4.62531179]
[1693618376096,13.90934364,1630.1,1630.0,7.49247531]
[1693618376394,13.90934364,1630.1,1630.0,4.62531179]
[1693618376594,16.2160134,1630.1,1630.0,4.62531179]
[1693618378707,16.2160134,1630.1,1630.0,2.32393179]
[1693618379406,16.2160134,1630.1,1630.0,0.02256179]
[1693618381111,16.2160134,1630.1,1630.0,2.32401179]
[1693618385216,16.2160134,1630.1,1630.0,5.19117531]
[1693618386917,16.2160134,1630.1,1630.0,0.02256179]
[1693618393424,16.2160134,1630.1,1630.0,2.88972531]
[1693618393922,16.2160134,1630.1,1630.0,0.02256179]
[1693618395525,16.2160134,1630.1,1630.0,2.41996179]
[1693618396125,16.2160134,1630.1,1630.0,5.28712531]
[1693618396625,16.2160134,1630.1,1630.0,2.41996179]
[1693618398127,16.2160134,1630.1,1630.0,5.28712531]
[1693618398526,16.2160134,1630.1,1630.0,2.41996179]
[1693618399826,16.2160134,1630.1,1630.0,5.28712531]
[1693618401427,16.2160134,1630.1,1630.0,2.41996179]
[1693618402328,16.2160134,1630.1,1630.0,5.28712531]
[1693618403218,14.73956976,1630.1,1630.0,5.28712531]
[1693618403425,15.23269588,1630.1,1630.0,7.58856531]
[1693618403931,15.23269588,1630.1,1630.0,5.28712531]
[1693618406531,16.70913952,1630.1,1630.0,5.28712531]
[1693618407635,16.70913952,1630.1,1630.0,7.58857531]
[1693618408335,16.70913952,1630.1,1630.0,5.28712531]
[1693618416043,15.23269588,1630.1,1630.0,5.28712531]
[1693618417741,16.70913952,1630.1,1630.0,2.41996179]
[1693618418239,16.70913952,1630.1,1630.0,5.28712531]
[1693618419742,15.23269588,1630.1,1630.0,5.28712531]
[1693618420144,16.70913952,1630.1,1630.0,5.28712531]
[1693618421039,15.23269588,1630.1,1630.0,5.28712531]
[1693618422847,16.70913952,1630.1,1630.0,5.28712531]
[1693618425543,18.31505435,1630.1,1630.0,5.28712531]
[1693618426945,16.70913952,1630.1,1630.0,5.28712531]
[1693618428749,15.23269588,1630.1,1630.0,5.28712531]
[1693618429349,16.70913952,1630.1,1630.0,5.28712531]
[1693618437050,15.23269588,1630.1,1630.0,5.28712531]
[1693618437448,16.70913952,1630.1,1630.0,5.28712531]
[1693618438855,15.23269588,1630.1,1630.0,5.28712531]
[1693618439554,16.70913952,1630.1,1630.0,5.28712531]
[1693618439956,15.23269588,1630.1,1630.0,5.28712531]
[1693618440257,16.70913952,1630.1,1630.0,5.28712531]
[1693618441152,16.70913952,1630.1,1630.0,2.41996179]
[1693618441847,16.70913952,1630.1,1630.0,5.28712531]
[1693618442654,15.23269588,1630.1,1630.0,5.28712531]
[1693618442959,16.70913952,1630.1,1630.0,5.28712531]
[1693618443353,15.23269588,1630.1,1630.0,5.28712531]
[1693618443553,16.70913952,1630.1,1630.0,5.28712531]
[1693618443855,7.50393952,1630.1,1630.0,5.28712531]
[1693618444757,9.11256539,1630.1,1630.0,5.28712531]
[1693618446760,9.11256539,1630.1,1630.0,2.41996179]
[1693618447258,9.11256539,1630.1,1630.0,5.28712531]
[1693618449059,7.63612175,1630.1,1630.0,5.28712531]
[1693618450161,9.11256539,1630.1,1630.0,5.28712531]
[1693618451763,7.50393952,1630.1,1630.0,5.28712531]
[1693618452863,6.02749588,1630.1,1630.0,5.28712531]
[1693618459769,7.63612175,1630.1,1630.0,5.28712531]
[1693618461178,9.11256539,1630.1,1630.0,5.28712531]
[1693618462579,7.63612175,1630.1,1630.0,5.28712531]
[1693618466778,6.02749588,1630.1,1630.0,5.28712531]
[1693618469771,7.50393952,1630.1,1630.0,5.28712531]
[1693618470775,6.02749588,1630.1,1630.0,5.28712531]
[1693618471179,7.50393952,1630.1,1630.0,2.41996179]
[1693618471376,7.50393952,1630.1,1630.0,5.28712531]
[1693618472177,7.50393952,1630.1,1630.0,2.41996179]
[1693618472785,7.50393952,1630.1,1630.0,5.28712531]
[1693618473487,6.02749588,1630.1,1630.0,5.28712531]
[1693618473887,15.23269588,1630.1,1630.0,5.28712531]
[1693618474887,15.23269588,1630.1,1630.0,7.58857531]
[1693618475987,15.23269588,1630.1,1630.0,5.28712531]
[1693618476187,15.23269588,1630.1,1630.0,7.58855531]
[1693618477385,16.70913952,1630.1,1630.0,7.58855531]
[1693618478091,15.23269588,1630.1,1630.0,7.58855531]
[1693618479089,15.23269588,1630.1,1630.0,9.89001531]
[1693618479286,16.70913952,1630.1,1630.0,7.58855531]
[1693618481087,16.70913952,1630.1,1630.0,9.89001531]
[1693618481291,16.70913952,1630.1,1630.0,7.58855531]
[1693618481890,18.31776539,1630.1,1630.0,7.58855531]
[1693618482092,16.70913952,1630.1,1630.0,7.58855531]
[1693618483387,18.31776539,1630.1,1630.0,7.58855531]
[1693618484381,16.84132175,1630.1,1630.0,7.58855531]
[1693618484690,15.23269588,1630.1,1630.0,7.58855531]
[1693618484989,16.84132175,1630.1,1630.0,7.58855531]
[1693618486795,15.23269588,1630.1,1630.0,7.58855531]
[1693618487096,16.84132175,1630.1,1630.0,7.58855531]
[1693618488297,15.23269588,1630.1,1630.0,7.58855531]
[1693618490199,16.70913952,1630.1,1630.0,7.58855531]
[1693618490398,14.73956976,1630.1,1630.0,7.58855531]
[1693618491099,14.73956976,1630.1,1630.0,9.89001531]
[1693618491300,14.73956976,1630.1,1630.0,7.58855531]
[1693618496704,14.73956976,1630.1,1630.0,9.89001531]
[1693618497503,0.00536976,1630.1,1630.0,14.49293531]
[1693618501902,0.00536976,1630.1,1630.0,20.02193531]
[1693618503809,12.49357,1630.3,1630.0,20.02193531]
[1693618504009,12.49357,1630.3,1630.1,4.01104751]
[1693618504308,12.49357,1630.3,1630.2,9.79314531]
[1693618504509,12.49357,1630.3,1630.2,12.19174531]
[1693618504709,12.49895586,1630.3,1630.2,12.19174531]
[1693618505312,12.49895586,1630.3,1630.2,14.49292531]
[1693618505812,0.00538586,1630.3,1630.2,20.02192531]
[1693618506000,0.45126017,1630.4,1630.3,10.79728572]
[1693618506202,6.96376,1630.5,1630.3,10.81984751]
[1693618506404,6.96376,1630.5,1630.4,6.92514179]
[1693618506606,6.96376,1630.5,1630.4,9.79230531]
[1693618506805,6.96874553,1630.5,1630.4,12.20740531]
[1693618507007,4.66790553,1630.5,1630.4,14.50826531]
[1693618507607,6.96874553,1630.5,1630.4,14.50826531]
[1693618509117,4.66790553,1630.5,1630.4,14.50826531]